fUST/lending_fUST_20250926
["ID","MTS","AMOUNT","RATE_DAILY","PERIOD"]
[387706418,1758817648099,-480.0,0.00019588,2]
[387706419,1758817648125,-480.0,0.00019588,2]
[387706420,1758817648253,-480.0,0.00019588,2]
[387706421,1758817648298,-480.0,0.00019588,2]
[387706422,1758817648321,-367.45733341,0.00019588,2]
[387706423,1758817648344,-480.0,0.00019588,2]
[387706424,1758817648366,-480.0,0.00019588,2]
[387706425,1758817648388,-480.0,0.00019588,2]
[387706426,1758817648410,-578.58328159,0.00019588,2]
[387706427,1758817648433,-480.0,0.00019588,2]
[387706428,1758817648455,-480.0,0.00019588,2]
[387706429,1758817648476,-480.0,0.00019588,2]
[387706430,1758817648499,-480.0,0.00019588,2]
[387706431,1758817648525,-480.0,0.00019588,2]
[387706432,1758817648546,-480.0,0.00019588,2]
[387706433,1758817648568,-480.0,0.00019588,2]
[387706434,1758817648593,-480.0,0.00019588,2]
[387706435,1758817648614,-480.0,0.00019588,2]
[387706436,1758817648635,-493.94633238,0.00019588,2]
[387706437,1758817648656,-494.75377499,0.00019588,2]
[387706438,1758817648676,-514.1457614,0.00019588,2]
[387706439,1758817648698,-480.0,0.00019588,2]
[387706440,1758817648720,-480.0,0.00019588,2]
[387706441,1758817648740,-480.0,0.00019588,2]
[387706442,1758817648763,-480.0,0.00019588,2]
[387706443,1758817648783,-480.0,0.00019588,2]
[387706444,1758817648804,-475.75885578,0.00019588,2]
[387706445,1758817648825,-480.0,0.00019588,2]
[387706446,1758817648849,-432.42431941,0.00019588,2]
[387706447,1758817648870,-480.0,0.00019588,2]
[387706448,1758817648891,-480.0,0.00019588,2]
[387706449,1758817648912,-480.0,0.00019588,2]
[387706450,1758817648933,-480.0,0.00019588,2]
[387706451,1758817648953,-480.0,0.00019588,2]
[387706452,1758817648973,-152.10816661,0.00019588,2]
[387706453,1758817648993,-303.71532283,0.00019588,2]
[387706454,1758817649016,-480.0,0.00019588,2]
[387706455,1758817649038,-480.0,0.00019588,2]
[387706456,1758817649059,-480.0,0.00019588,2]
[387706457,1758817649079,-480.0,0.00019588,2]
[387706458,1758817649101,-480.0,0.00019588,2]
[387706459,1758817649124,-480.0,0.00019588,2]
[387706460,1758817649145,-330.68640284,0.00019588,2]
[387706461,1758817649167,-480.0,0.00019588,2]
[387706462,1758817649191,-480.0,0.00019588,2]
[387706463,1758817649212,-480.0,0.00019588,2]
[387706464,1758817649234,-480.0,0.00019588,2]
[387706465,1758817649255,-489.53703657,0.00019588,2]
[387706466,1758817649278,-480.0,0.00019588,2]
[387706467,1758817649301,-480.0,0.00019588,2]
[387706468,1758817649327,-480.0,0.00019588,2]
[387706469,1758817649349,-480.0,0.00019588,2]
[387706470,1758817649370,-480.0,0.00019588,2]
[387706471,1758817649391,-480.0,0.00019588,2]
[387706472,1758817649414,-480.0,0.00019588,2]
[387706473,1758817649435,-480.0,0.00019588,2]
[387706474,1758817649456,-480.0,0.00019588,2]
[387706475,1758817649478,-480.0,0.00019588,2]
[387706476,1758817649500,-480.0,0.00019588,2]
[387706477,1758817649527,-480.0,0.00019588,2]
[387706478,1758817649550,-480.0,0.00019588,2]
[387706479,1758817649573,-480.0,0.00019588,2]
[387706480,1758817649595,-480.0,0.00019588,2]
[387706481,1758817649616,-480.0,0.00019588,2]
[387706482,1758817649638,-309.71612535,0.00019588,2]
[387706483,1758817649659,-480.0,0.00019588,2]
[387706484,1758817649681,-480.0,0.00019588,2]
[387706485,1758817649702,-480.0,0.00019588,2]
[387706486,1758817649726,-480.0,0.00019588,2]
[387706487,1758817649747,-480.0,0.00019588,2]
[387706488,1758817649767,-486.43456724,0.00019588,2]
[387706489,1758817649789,-480.0,0.00019588,2]
[387706490,1758817649810,-480.0,0.00019588,2]
[387706491,1758817649831,-480.0,0.00019588,2]
[387706492,1758817649853,-480.0,0.00019588,2]
[387706493,1758817649874,-480.0,0.00019588,2]
[387706494,1758817649895,-480.0,0.00019588,2]
[387706495,1758817649916,-480.0,0.00019588,2]
[387706496,1758817649939,-1992.34,0.00019588,2]
[387706497,1758817649961,-480.0,0.00019588,2]
[387706498,1758817649982,-245.23493164,0.00019588,2]
[387706499,1758817650007,-480.0,0.00019588,2]
[387706500,1758817650030,-480.0,0.00019588,2]
[387706501,1758817650053,-480.0,0.00019588,2]
[387706502,1758817650075,-364.01,0.00019588,2]
[387706503,1758817650096,-235.08398658,0.00019588,2]
[387706504,1758817650122,-480.0,0.00019588,2]
[387706505,1758817650145,-576.44,0.00019588,2]
[387706506,1758817650168,-480.0,0.00019588,2]
[387706507,1758817650191,-480.0,0.00019588,2]
[387706508,1758817650212,-480.0,0.00019588,2]
[387706509,1758817650234,-380.29763674,0.00019588,2]
[387706510,1758817650256,-480.0,0.00019588,2]
[387706511,1758817650278,-540.90046425,0.00019589,2]
[387706512,1758817650300,-480.0,0.00019589,2]
[387706513,1758817650321,-480.0,0.00019589,2]
[387706514,1758817650344,-480.0,0.00019589,2]
[387706515,1758817650365,-480.0,0.00019589,2]
[387706516,1758817650385,-480.0,0.00019621,2]
[387706517,1758817650409,-301.18998338,0.00019621,2]
[387706518,1758817650429,-480.0,0.00019621,2]
[387706519,1758817650451,-480.0,0.00019622,2]
[387706520,1758817650473,-480.0,0.00019622,2]
[387706521,1758817650494,-480.0,0.00019622,2]
[387706522,1758817650517,-480.0,0.00019622,2]
[387706523,1758817650539,-480.0,0.00019622,2]
[387706524,1758817650560,-480.0,0.00019622,2]
[387706525,1758817650580,-504.67106033,0.00019622,2]
[387706526,1758817650604,-211.17692652,0.00019622,2]
[387706527,1758817650626,-480.0,0.00019622,2]
[387706528,1758817650647,-480.0,0.00019622,2]
[387706529,1758817650668,-480.0,0.00019622,2]
[387706530,1758817650693,-480.0,0.00019622,2]
[387706531,1758817650717,-480.0,0.00019622,2]
[387706532,1758817650738,-280.7640216,0.00019862,2]
[387706533,1758817650760,-480.0,0.00019862,2]
[387706534,1758817650781,-480.0,0.00019862,2]
[387706535,1758817650802,-480.0,0.00019862,2]
[387706536,1758817650826,-480.0,0.00019862,2]
[387706537,1758817650849,-480.0,0.00019862,2]
[387706538,1758817650869,-480.0,0.00019862,2]
[387706539,1758817650890,-480.0,0.00019862,2]
[387706540,1758817650911,-480.0,0.00019862,2]
[387706541,1758817650932,-480.0,0.00019862,2]
[387706542,1758817650954,-480.0,0.00019862,2]
[387706543,1758817650975,-480.0,0.00019862,2]
[387706544,1758817650995,-480.0,0.00019862,2]
[387706545,1758817651020,-480.0,0.00019862,2]
[387706546,1758817651041,-476.63675022,0.00019862,2]
[387706547,1758817651150,-176.65887871,0.00019862,2]
[387706548,1758817651174,-231.66486156,0.00019862,2]
[387706549,1758817651196,-480.0,0.00019862,2]
[387706550,1758817651217,-480.0,0.00019862,2]
[387706551,1758817651238,-480.0,0.00019862,2]
[387706552,1758817651262,-486.69221446,0.00019862,2]
[387706553,1758817651288,-480.0,0.00019862,2]
[387706554,1758817651311,-480.0,0.00019862,2]
[387706555,1758817651335,-480.0,0.00019862,2]
[387706556,1758817651358,-480.0,0.00019862,2]
[387706557,1758817651380,-480.0,0.00019862,2]
[387706558,1758817651401,-480.0,0.00019862,2]
[387706559,1758817651423,-480.0,0.00019862,2]
[387706560,1758817651446,-345.22,0.00019862,2]
[387706561,1758817651469,-480.0,0.00019862,2]
[387706562,1758817651490,-480.0,0.00019862,2]
[387706563,1758817651514,-550.61,0.00019862,2]
[387706564,1758817651534,-480.0,0.00019862,2]
[387706565,1758817651555,-480.0,0.00019862,2]
[387706566,1758817651575,-480.0,0.00019862,2]
[387706567,1758817651599,-605.76,0.00019862,2]
[387706568,1758817651621,-480.0,0.00019862,2]
[387706569,1758817651642,-569.18840441,0.00019862,2]
[387706570,1758817651663,-1992.34,0.00019862,2]
[387706571,1758817651687,-480.0,0.00019862,2]
[387706572,1758817651710,-480.0,0.00019862,2]
[387706573,1758817651732,-480.0,0.00019862,2]
[387706574,1758817651754,-480.0,0.00019862,2]
[387706575,1758817651777,-480.0,0.00019862,2]
[387706576,1758817651803,-387.27137735,0.00019862,2]
[387706577,1758817651825,-456.75447438,0.00019863,2]
[387706578,1758817651846,-480.0,0.00019863,2]
[387706579,1758817651869,-480.0,0.00019863,2]
[387706580,1758817651891,-480.0,0.00019895,2]
[387706581,1758817651913,-480.0,0.00019896,2]
[387706582,1758817651935,-480.0,0.00019896,2]
[387706583,1758817651958,-480.0,0.00019896,2]
[387706584,1758817651979,-208.86633553,0.00019896,2]
[387706585,1758817652002,-480.0,0.00019896,2]
[387706586,1758817652029,-538.09,0.00019896,2]
[387706587,1758817652055,-552.66394787,0.000199,2]
[387706588,1758817652076,-289.83604946,0.00019921,2]
[387706589,1758817652096,-100000.0,0.0001999,2]
[387706590,1758817652121,-593.51595937,0.00020136,2]
[387706591,1758817652142,-480.0,0.00020136,2]
[387706592,1758817652164,-480.0,0.00020136,2]
[387706593,1758817652188,-485.71689908,0.00020136,2]
[387706594,1758817652209,-480.0,0.00020136,2]
[387706595,1758817652231,-516.09494905,0.00020136,2]
[387706596,1758817652253,-282.05249066,0.00020136,2]
[387706597,1758817652277,-577.99290684,0.00020136,2]
[387706598,1758817652300,-221.61971798,0.00020136,2]
[387706599,1758817652323,-480.0,0.00020136,2]
[387706600,1758817652347,-480.0,0.00020136,2]
[387706601,1758817652370,-241.02436184,0.00020136,2]
[387706602,1758817652393,-480.0,0.00020136,2]
[387706603,1758817652416,-480.0,0.00020136,2]
[387706604,1758817652439,-480.0,0.00020136,2]
[387706605,1758817652463,-1992.34,0.00020136,2]
[387706606,1758817652488,-480.0,0.00020136,2]
[387706607,1758817652512,-607.0549303,0.00020136,2]
[387706608,1758817652534,-480.0,0.00020136,2]
[387706609,1758817652556,-480.0,0.00020136,2]
[387706610,1758817652579,-480.0,0.00020136,2]
[387706611,1758817652607,-480.0,0.00020137,2]
[387706612,1758817652628,-480.0,0.00020169,2]
[387706613,1758817652650,-480.0,0.0002017,2]
[387706614,1758817652670,-480.0,0.0002017,2]
[387706615,1758817652694,-480.0,0.0002017,2]
[387706616,1758817652714,-537.02804546,0.00020259,2]
[387706617,1758817652737,-389.81114768,0.0002041,2]
[387706618,1758817652762,-480.0,0.0002041,2]
[387706619,1758817652784,-534.04,0.0002041,2]
[387706620,1758817652807,-480.0,0.0002041,2]
[387706621,1758817652830,-186.69,0.0002041,2]
[387706622,1758817652851,-1992.34,0.0002041,2]
[387706623,1758817652874,-480.0,0.0002041,2]
[387706624,1758817652898,-316.38,0.0002041,2]
[387706625,1758817652923,-480.0,0.0002041,2]
[387706626,1758817652945,-480.0,0.00020444,2]
[387706627,1758817652967,-480.0,0.00020444,2]
[387706628,1758817652991,-480.0,0.00020444,2]
[387706629,1758817653020,-480.0,0.00020684,2]
[387706630,1758817653045,-438.4,0.00020684,2]
[387706631,1758817653069,-1992.34,0.00020684,2]
[387706632,1758817653094,-480.0,0.00020684,2]
[387706633,1758817653122,-277.32,0.00020684,2]
[387706634,1758817653146,-1604.68,0.00020712,3]
[387706635,1758817653169,-802.34,0.00020712,3]
[387706636,1758817653194,-401.16,0.00020712,3]
[387706637,1758817653217,-480.0,0.00020718,2]
[387706638,1758817653241,-480.0,0.00020718,2]
[387706639,1758817653269,-480.0,0.00020718,2]
[387706640,1758817653292,-150.0,0.00020765,2]
[387706641,1758817653316,-480.0,0.00020958,2]
[387706642,1758817653338,-1992.34,0.00020958,2]
[387706643,1758817653363,-550.29,0.00020958,2]
[387706644,1758817653392,-552.66394762,0.00020972,2]
[387706645,1758817653418,-480.0,0.00020992,2]
[387706646,1758817653452,-480.0,0.00020992,2]
[387706647,1758817653478,-420.0,0.00021043,2]
[387706648,1758817653506,-480.0,0.00021232,2]
[387706649,1758817653534,-1992.34,0.00021232,2]
[387706650,1758817653560,-480.0,0.00021266,2]
[387706651,1758817653587,-480.0,0.00021266,2]
[387706652,1758817653614,-480.0,0.00021506,2]
[387706653,1758817653640,-1992.34,0.00021506,2]
[387706654,1758817653665,-546.95,0.0002154,2]
[387706655,1758817653695,-480.0,0.0002154,2]
[387706656,1758817653722,-480.0,0.0002178,2]
[387706657,1758817653745,-1992.34,0.0002178,2]
[387706658,1758817653774,-480.0,0.00021814,2]
[387706659,1758817653801,-552.66394762,0.00022044,2]
[387706660,1758817653830,-410.96,0.00022054,2]
[387706661,1758817653854,-1992.34,0.00022054,2]
[387706662,1758817653881,-480.0,0.00022088,2]
[387706663,1758817653904,-310.85,0.000221,2]
[387706664,1758817653931,-1992.34,0.00022328,2]
[387706665,1758817653959,-480.0,0.00022362,2]
[387706666,1758817653984,-407.22053807,0.00022516,2]
[387706667,1758817654008,-160.0,0.00022516,2]
[387706668,1758817654033,-160.0,0.00022516,2]
[387706669,1758817654151,-160.0,0.00022516,2]
[387706670,1758817654177,-160.0,0.00022516,2]
[387706671,1758817654201,-233.66602051,0.00022519,2]
[387706672,1758817654225,-160.0,0.00022519,2]
[387706673,1758817654251,-160.0,0.00022519,2]
[387706674,1758817654278,-1992.34,0.00022602,2]
[387706675,1758817654308,-480.0,0.00022636,2]
[387706676,1758817654335,-150.0,0.00022652,2]
[387706677,1758817654362,-1992.34,0.00022876,2]
[387706678,1758817654390,-480.0,0.0002291,2]
[387706679,1758817654416,-433.0,0.0002293,2]
[387706680,1758817654439,-160.0,0.00023,3]
[387706681,1758817654462,-160.0,0.00023,2]
[387706682,1758817654486,-233.66602051,0.00023,3]
[387706683,1758817654509,-552.66394762,0.00023116,2]
[387706684,1758817654533,-1992.34,0.0002315,2]
[387706685,1758817654559,-277.58,0.00023184,2]
[387706686,1758817654580,-502.09635083,0.00023287,2]
[387706687,1758817654604,-1992.34,0.00023424,2]
[387706688,1758817654627,-1889.9948784,0.00023497,2]
[387706689,1758817654651,-1992.34,0.00023698,2]
[387706690,1758817654675,-1992.34,0.00023972,2]
[387706691,1758817654695,-200.0,0.00024109,2]
[387706692,1758817654716,-200.0,0.00024109,2]
[387706693,1758817654738,-10.17749049,0.00024109,2]
[387706694,1758817654825,-189.82250951,0.00024109,2]
[387706695,1758817654849,-200.0,0.00024109,2]
[387706696,1758817654871,-293.71008046,0.00024109,2]
[387706697,1758817654893,-552.66394762,0.00024187,2]
[387706698,1758817654915,-1992.34,0.00024246,2]
[387706699,1758817654938,-788.455,0.00024354,6]
[387706700,1758817654959,-421.7148599,0.00024431,2]
[387706701,1758817654981,-1992.34,0.0002452,2]
[387706702,1758817655002,-1992.34,0.00024794,2]
[387706703,1758817655023,-31602.9394843,0.000248,2]
[387706704,1758817655044,-217.29607,0.00024808,2]
[387706705,1758817655064,-293.85068442,0.00024836,2]
[387706706,1758817655086,-501.78246744,0.00024873,2]
[387706707,1758817655107,-88429.72793635,0.000249,2]
[387706712,1758817721409,150.99999924,0.0002,120]
[387706760,1758817832114,-480.0,0.00019313,2]
[387706764,1758817832124,-480.0,0.00019313,2]
[387706766,1758817832133,-405.71756841,0.00019313,2]
[387706768,1758817832143,-480.0,0.00019314,2]
[387706771,1758817832153,-480.0,0.00019314,2]
[387706775,1758817832164,-480.0,0.00019314,2]
[387706778,1758817832178,-485.12202504,0.00019314,2]
[387706781,1758817832188,-480.0,0.00019314,2]
[387706784,1758817832197,-480.0,0.00019314,2]
[387706786,1758817832206,-480.0,0.00019314,2]
[387706788,1758817832216,-480.0,0.00019314,2]
[387706790,1758817832226,-480.0,0.00019314,2]
[387706792,1758817832235,-258.35334198,0.00019314,2]
[387706794,1758817832248,-223.31988039,0.00019314,2]
[387706796,1758817832258,-484.42996308,0.00019314,2]
[387706798,1758817832267,-478.36916472,0.00019314,2]
[387706800,1758817832276,-480.0,0.00019351,2]
[387706802,1758817832286,-566.05504292,0.00019351,2]
[387706805,1758817832296,-480.0,0.00019351,2]
[387706808,1758817832305,-480.0,0.00019351,2]
[387706811,1758817832315,-68604.22594904,0.00019352,2]
[387706815,1758817832327,-20612.32053881,0.00019352,2]
[387706818,1758817832338,-841.81967037,0.00019352,2]
[387706822,1758817832349,-1419.85706074,0.00019352,2]
[387706825,1758817832361,-1707.03412914,0.00019352,2]
[387706829,1758817832376,-847.999995,0.00019352,2]
[387706858,1758817837958,-590.25393081,0.00019351,2]
[387706860,1758817837969,-226.93582589,0.00019351,2]
[387706863,1758817837981,-253.06417411,0.00019351,2]
[387706865,1758817837991,-1177.63218002,0.00019352,2]
[387706867,1758817838003,-4909.88799947,0.00019352,2]
[387706869,1758817838016,-1709.93850827,0.00019352,2]
[387706871,1758817838028,-9653.56504228,0.00019352,2]
[387706874,1758817838039,-1082.3,0.00019352,2]
[387706876,1758817838050,-4600.58227438,0.00019352,2]
[387706879,1758817838074,-252832.83665248,0.00019352,2]
[387706881,1758817838083,-162.9720525,0.00019487,2]
[387706883,1758817838092,-418.81688739,0.00019587,2]
[387706885,1758817838102,-598.85274511,0.000199,2]
[387706887,1758817838111,-500.0,0.00019973,2]
[387706889,1758817838121,-9806.11693039,0.000202,2]
[387706891,1758817838131,-1369.67297984,0.0002061,2]
[387706893,1758817838141,-28567.35474008,0.00020627,3]
[387706895,1758817838150,-598.85274496,0.00020972,2]
[387706897,1758817838160,-10000.0,0.00021,5]
[387706899,1758817838173,-523.42257976,0.00021,10]
[387706901,1758817838185,-165.25550742,0.00021,10]
[387706903,1758817838195,-130.99449258,0.00021,2]
[387706906,1758817838207,-73.2409527,0.00021,2]
[387706908,1758817838218,-598.85274496,0.00022044,2]
[387706910,1758817838227,-999.18175569,0.00022427,2]
[387706912,1758817838236,-160.0,0.00022499,2]
[387706914,1758817838247,-233.66602051,0.00022499,2]
[387706916,1758817838257,-160.0,0.00022499,2]
[387706918,1758817838267,-160.0,0.00022499,2]
[387706919,1758817838276,-160.0,0.00022499,2]
[387706921,1758817838285,-605.0,0.000228,2]
[387706923,1758817838295,-33780.6667196,0.00022998,2]
[387706926,1758817838307,-836.14027189,0.00022998,2]
[387706928,1758817838318,-344.27777,0.00022998,2]
[387707172,1758817841637,-79074.16935063,0.00022998,2]
[387707174,1758817841647,-2349.19915005,0.00023,2]
[387707176,1758817841657,-160.0,0.00023,2]
[387707178,1758817841669,-279.76,0.00023,2]
[387707180,1758817841679,-598.85274496,0.00023116,2]
[387707182,1758817841689,-162.9720525,0.00023752,2]
[387707185,1758817841699,-598.85274496,0.00024187,2]
[387707187,1758817841708,-34629.67311607,0.000249,2]
[387707201,1758817841843,-14385.44256,0.000249,2]
[387707204,1758817841855,-2674.85116802,0.000249,2]
[387707359,1758817843297,-472.44006079,0.00019351,2]
[387707361,1758817843308,-182.08213502,0.000249,2]
[387707363,1758817843320,-39973.03661402,0.000249,2]
[387707564,1758817845339,-17951.889604,0.000249,2]
[387707570,1758817846132,-618.52,0.0002489,10]
[387707571,1758817846143,-27324.80542777,0.000249,2]
[387707572,1758817846154,-34871.60325504,0.000249,2]
[387707573,1758817846186,-43451.62890373,0.000249,2]
[387707574,1758817846198,-1219.00812989,0.000249,2]
[387707575,1758817846241,-3345.47067929,0.000249,2]
[387707589,1758818166094,-628.6744264,0.00019213,3]
[387707590,1758818166127,-1200.0,0.00019312,2]
[387707591,1758818166157,-300.0,0.00019312,2]
[387707592,1758818166187,-480.0,0.00019313,2]
[387707593,1758818166219,-480.0,0.00019313,2]
[387707594,1758818166247,-480.0,0.00019313,2]
[387707595,1758818166275,-576.49,0.00019313,2]
[387707596,1758818166307,-480.0,0.00019313,2]
[387707597,1758818166336,-269.6811472,0.00019313,2]
[387707598,1758818166349,-210.3188528,0.00019313,2]
[387707599,1758818166358,-418.3555736,0.00019313,2]
[387707600,1758818166370,-61.6444264,0.00019313,2]
[387707601,1758818166381,-480.0,0.00019313,2]
[387707602,1758818166391,-480.0,0.00019313,2]
[387707603,1758818166400,-178.3555736,0.00019314,2]
[387707604,1758818166411,-300.0,0.00019314,2]
[387707605,1758818166421,-480.0,0.00019314,2]
[387707606,1758818166435,-480.0,0.00019314,2]
[387707607,1758818166447,-480.0,0.00019314,2]
[387707608,1758818166458,-576.49,0.00019314,2]
[387707609,1758818166470,-480.0,0.00019314,2]
[387707610,1758818166485,-467.56905877,0.00019314,2]
[387707611,1758818166495,-12.43094123,0.00019314,2]
[387707613,1758818258635,-761.0,0.00019312,2]
[387707614,1758818258664,-480.0,0.00019313,2]
[387707615,1758818258694,-480.0,0.00019313,2]
[387707616,1758818258722,-480.0,0.00019313,2]
[387707617,1758818258751,-480.0,0.00019313,2]
[387707618,1758818258779,-480.0,0.00019313,2]
[387707619,1758818258810,-480.0,0.00019313,2]
[387707620,1758818258838,-480.0,0.00019314,2]
[387707621,1758818258867,-507.50853434,0.00019314,2]
[387707622,1758818258896,-256.90146714,0.00019314,2]
[387707623,1758818258909,-229.18999704,0.00019314,2]
[387707624,1758818258918,-480.0,0.00019314,2]
[387707625,1758818258928,-51.81000296,0.00019314,2]
[387707626,1758818258939,-428.18999704,0.00019314,2]
[387707627,1758818258948,-51.81000296,0.00019314,2]
[387707628,1758818258959,-428.18999704,0.00019314,2]
[387707629,1758818258968,-51.81000296,0.00019314,2]
[387707630,1758818258983,-479.97999704,0.00019314,2]
[387707631,1758818258992,-0.02000296,0.00019314,2]
[387707632,1758818259003,-479.97999704,0.00019314,2]
[387707633,1758818259013,-0.02000296,0.00019314,2]
[387707634,1758818259024,-479.97999704,0.00019314,2]
[387707635,1758818259038,-0.02000296,0.00019314,2]
[387707636,1758818259053,-479.97999704,0.00019314,2]
[387707637,1758818259062,-0.02000296,0.00019314,2]
[387707638,1758818259077,-479.97999704,0.00019314,2]
[387707639,1758818259086,-0.02000296,0.00019314,2]
[387707640,1758818259102,-479.97999704,0.00019314,2]
[387707641,1758818259111,-27.5285373,0.00019314,2]
[387707642,1758818259126,-452.4714627,0.00019314,2]
[387707643,1758818259135,-33.62000148,0.00019314,2]
[387707652,1758818601340,162.0,0.0002,14]
[387707657,1758818834108,-480.0,0.00019313,2]
[387707658,1758818834131,-480.0,0.00019314,2]
[387707659,1758818834153,-480.0,0.00019314,2]
[387707660,1758818834175,-480.0,0.00019314,2]
[387707661,1758818834198,-594.64,0.00019314,2]
[387707662,1758818834223,-446.37999852,0.00019314,2]
[387707663,1758818834246,-480.0,0.00019314,2]
[387707664,1758818834266,-151.81729377,0.0001934,2]
[387707665,1758818834288,-500.0,0.00019348,2]
[387707666,1758818834310,-500.0,0.00019348,2]
[387707667,1758818834330,-500.0,0.00019348,2]
[387707668,1758818834351,-500.0,0.00019348,2]
[387707669,1758818834376,-500.0,0.00019348,2]
[387707670,1758818834396,-500.0,0.00019348,2]
[387707671,1758818834417,-320.15268145,0.00019348,2]
[387707672,1758818834438,-480.0,0.00019349,2]
[387707673,1758818834458,-490.90466501,0.00019349,2]
[387707674,1758818834480,-480.0,0.00019349,2]
[387707675,1758818834502,-480.0,0.00019349,2]
[387707676,1758818834524,-480.0,0.00019349,2]
[387707677,1758818834547,-480.0,0.00019349,2]
[387707678,1758818834572,-480.0,0.00019349,2]
[387707679,1758818834592,-480.0,0.00019349,2]
[387707680,1758818834613,-480.0,0.00019349,2]
[387707681,1758818834633,-480.0,0.00019349,2]
[387707682,1758818834653,-480.0,0.00019349,2]
[387707683,1758818834674,-480.0,0.00019349,2]
[387707684,1758818834695,-480.0,0.00019349,2]
[387707685,1758818834717,-480.0,0.00019349,2]
[387707686,1758818834741,-480.70854724,0.00019349,2]
[387707687,1758818834762,-480.0,0.00019349,2]
[387707688,1758818834785,-301.90206563,0.00019349,2]
[387707689,1758818834808,-481.12666495,0.00019349,2]
[387707690,1758818834829,-480.0,0.00019349,2]
[387707691,1758818834854,-480.0,0.00019349,2]
[387707692,1758818834879,-480.0,0.00019349,2]
[387707693,1758818834901,-462.58156036,0.00019349,2]
[387707694,1758818834922,-462.58156036,0.00019349,2]
[387707695,1758818834945,-480.0,0.00019349,2]
[387707696,1758818834968,-480.0,0.00019349,2]
[387707697,1758818834990,-481.7001455,0.00019349,2]
[387707698,1758818835011,-480.0,0.00019349,2]
[387707699,1758818835031,-480.0,0.00019349,2]
[387707700,1758818835053,-480.0,0.00019349,2]
[387707701,1758818835075,-480.0,0.00019349,2]
[387707702,1758818835098,-480.0,0.00019349,2]
[387707703,1758818835117,-480.0,0.00019349,2]
[387707704,1758818835138,-186.73847248,0.00019349,2]
[387707705,1758818835159,-480.0,0.00019349,2]
[387707706,1758818835180,-480.0,0.00019349,2]
[387707707,1758818835201,-480.0,0.00019349,2]
[387707708,1758818835221,-480.42703325,0.00019349,2]
[387707709,1758818835245,-480.0,0.00019349,2]
[387707710,1758818835266,-488.48632724,0.00019349,2]
[387707711,1758818835287,-494.82086472,0.00019349,2]
[387707712,1758818835310,-500.50200934,0.00019349,2]
[387707713,1758818835330,-480.0,0.00019349,2]
[387707714,1758818835351,-480.0,0.00019349,2]
[387707715,1758818835373,-480.0,0.00019349,2]
[387707716,1758818835393,-480.0,0.00019349,2]
[387707717,1758818835413,-480.0,0.00019349,2]
[387707718,1758818835434,-480.0,0.00019349,2]
[387707719,1758818835454,-480.0,0.00019349,2]
[387707720,1758818835475,-409.8259961,0.00019349,2]
[387707721,1758818843125,-70.1740039,0.00019349,2]
[387707722,1758818843145,-480.0,0.00019349,2]
[387707723,1758818843165,-467.43626535,0.00019349,2]
[387707724,1758818843186,-550.8896507,0.00019349,2]
[387707725,1758818843207,-480.0,0.00019349,2]
[387707726,1758818843226,-326.88143276,0.0001935,2]
[387707727,1758818843246,-480.0,0.0001935,2]
[387707728,1758818843264,-240.61648535,0.0001935,2]
[387707729,1758818843283,-480.0,0.0001935,2]
[387707730,1758818843301,-480.0,0.0001935,2]